Cogmind - Beta 17 @@@ ROGUE MODE // 2026.08.10 @ 17:26:01 Player: Marc Result: Self-destructed Performance ------------- Evolutions (2) 1000 Regions Visited (7) 1400 Robots Destroyed (30) 150 Value Destroyed (704) 704 Prototype IDs (8) 160 Alien Tech Used (0) 0 Bonus (0) 0 TOTAL SCORE: 3414 Bonus ------- None Cogmind --------- Core Integrity 470/550 Matter 262/300 Energy 160/160 System Corruption 3% Temperature Hot (265) Movement Treading (163) Location -8/Materials Parts ------- > --- POWER (1) -------- Light Nuclear Core > --- PROPULSION (4) --- Light Treads Light Treads Armored Treads > --- UTILITY (4) ------ Small Storage Unit Advanced Visual Processing Unit Signal Interpreter > --- WEAPON (2) ------- Advanced Beam Rifle Advanced Beam Rifle > --- INVENTORY (8) ---- Light Ion Engine Improved Flight Unit Reaction Control System Improved Propulsion Shielding Bomb Drone Bay (0/16) Precision Beam Rifle Peak State ------------ > --- POWER ------------ Light Nuclear Core > --- PROPULSION ------- Light Treads Light Treads Armored Treads Improved Flight Unit > --- UTILITY ---------- Small Storage Unit Signal Interpreter Bomb Drone Bay > --- WEAPON ----------- Heavy EM Shotgun EM Pulse Cannon > --- INVENTORY -------- Light Ion Engine [Rating: 34] Favorites ----------- Power Light Ion Engine Engine Light Ion Engine Power Core Light Nuclear Core Propulsion Light Treads Treads Light Treads Leg Aluminum Leg Wheel Wheel Flight Unit Improved Flight Unit Utility Small Storage Unit Device Bomb Drone Bay Storage Small Storage Unit Processor Signal Interpreter Protection Utility Shielding Weapon Light Cannon Energy Gun Heavy EM Shotgun Energy Cannon EM Pulse Cannon Ballistic Gun Assault Rifle Ballistic Cannon Light Cannon Build | -11 -10 -10 -9 -9 -9 -8 -8 ------- Run | Yrd Mat Min Mat Min Exi Min Mat Slots Evolved 4 | . . . 2 . . . 2 Power . | . . . . . . . . Propulsion 2 | . . . 1 . . . 1 Utility 2 | . . . 1 . . . 1 Weapon . | . . . . . . . . Parts Attached 33 | . 10 . 8 1 . . 14 Power 3 | . 2 . . . . . 1 Engine 2 | . 2 . . . . . . Core 1 | . . . . . . . 1 Reactor . | . . . . . . . . Propulsion 9 | . 4 . 2 . . . 3 Treads 4 | . 2 . . . . . 2 Leg 1 | . . . . . . . 1 Wheel 2 | . 2 . . . . . . Hover . | . . . . . . . . Flight 2 | . . . 2 . . . . Utility 6 | . 1 . 3 1 . . 1 Device 1 | . . . . 1 . . . Storage 1 | . . . 1 . . . . Processor 2 | . . . 1 . . . 1 Hackware . | . . . . . . . . Protection 2 | . 1 . 1 . . . . Artifact . | . . . . . . . . Weapon 15 | . 3 . 3 . . . 9 Energy Gun 7 | . . . 1 . . . 6 Energy Cannon 1 | . . . . . . . 1 Ballistic Gun 2 | . . . 1 . . . 1 Ballistic Cannon 5 | . 3 . 1 . . . 1 Launcher . | . . . . . . . . Special Weapon . | . . . . . . . . Impact Weapon . | . . . . . . . . Slashing Weapon . | . . . . . . . . Piercing Weapon . | . . . . . . . . Special Melee Weapon . | . . . . . . . . Unidentified Prototypes 8 | . . . 3 1 . . 4 Corrupted Parts 1 | . . . . . . . 1 System Corruption 3 | . . . . . . . 3 Parts Lost 2 | . . . . 1 . . 1 Power . | . . . . . . . . Propulsion 2 | . . . . 1 . . 1 Utility . | . . . . . . . . Weapon . | . . . . . . . . Highest Loss Streak 1 | . . . . 1 . . 1 To Critical Strikes . | . . . . . . . . Average Backups 3 | 6 4 4 2 2 2 2 2 Power . | 1 . . . . . . . Propulsion 1 | 4 1 2 . 1 1 1 . Utility . | . . . . 1 1 1 1 Weapon . | 1 2 2 1 . . . . Tool/Special . | . . . . . . . . Unused Backups 12 | . 8 . . . . . 4 Power 2 | . 2 . . . . . . Propulsion 2 | . 2 . . . . . . Utility 3 | . 1 . . . . . 2 Weapon 5 | . 3 . . . . . 2 Tool/Special . | . . . . . . . . Average Slot Usage (%) 85 | . 95 100 70 70 77 77 82 Engine 9 | . 14 14 11 11 11 11 3 Core 1 | . . . . . . . 6 Treads 16 | . 13 14 13 5 11 11 24 Wheel 5 | . 13 14 6 . . . . Flight 5 | . . . 6 14 11 11 5 Device 3 | . . . . 9 11 11 5 Storage 8 | . 14 14 7 . . . 9 Processor 6 | . . . 3 11 11 11 12 Protection 5 | . 10 14 7 . . . . Energy Gun 4 | . 2 . 5 . . . 10 Energy Cannon 1 | . . . . . . . 5 Ballistic Cannon 15 | . 23 28 9 18 22 22 1 Peak Build Rating 34 | 6 7 7 14 22 22 22 34 Average Rating 16 | 6 6 7 8 19 22 22 25 On Entrance 12 | 6 6 7 7 6 22 22 22 Avg Prop Armor Cover (%) 12 | . 11 11 18 . . . 6 Naked Turns . | . . . . . . . . Heaviest Build 28 | 11 15 15 22 17 17 17 28 Greatest Support 80 | 20 20 10 10 20 20 20 80 Greatest Overweight (x) 6 | . 1 1 6 3 . . . Average Overweight (x) . | . . 1 . . . . . Largest Inventory Capacity 8 | 8 8 8 8 5 5 5 8 Average Capacity 7 | 8 8 8 7 5 5 5 8 Most Carried 8 | 6 7 8 8 5 2 2 8 Average Carried 4 | 6 4 7 5 2 2 2 2 Final Capacity 8 | 8 8 8 5 5 5 5 8 Final Carried 8 | 6 4 8 5 2 2 2 7 Class Distribution -------------------- 100% | Mutant Dominant Class ---------------- Mutant | -10/Materials Mutant | -10/Mines Mutant | -9/Materials Mutant | -9/Mines Mutant | -9/Exiles Mutant | -8/Mines Mutant | -8/Materials Resources | -11 -10 -10 -9 -9 -9 -8 -8 ----------- Run | Yrd Mat Min Mat Min Exi Min Mat Matter Collected 1003 | 200 242 . 206 75 . . 280 Remotely . | . . . . . . . . Salvage Created 1004 | . 308 . 129 . . . 567 Parts 57 | . 23 . 4 . . . 30 Haulers Intercepted 1 | . . . . . . . 1 Recyclers Shooed . | . . . . . . . . Parts Field Recycled . | . . . . . . . . Retrieved Matter . | . . . . . . . . Parts Self-Destructed . | . . . . . . . . Prevented . | . . . . . . . . Parts Restored . | . . . . . . . . Kills | -11 -10 -10 -9 -9 -9 -8 -8 ------- Run | Yrd Mat Min Mat Min Exi Min Mat Combat Hostiles Destroyed 20 | . 11 . 3 . . . 6 Guns 6 | . . . 2 . . . 4 Cannons 14 | . 11 . 1 . . . 2 Classes Destroyed 10 | . 6 . 1 . . . 3 Worker 4 | . 1 . . 1 . . 2 Builder 1 | . 1 . . . . . . Tunneler 1 | . . . . . . . 1 Hauler 1 | . . . . . . . 1 Recycler 2 | . 1 . . . . . 1 Watcher 1 | . 1 . . . . . . Swarmer 6 | . 6 . . . . . . Grunt 8 | . 5 . 2 . . . 1 Sentry 5 | . . . 1 . . . 4 Hunter 1 | . . . . . . . 1 Best Kill Streak 6 | . 4 . 2 1 . . 6 Combat Bots Only 4 | . 4 . 2 . . . 2 Max Kills in Single Turn 2 | . 2 . 1 1 . . 1 Gunslinging . | . . . . . . . . Exploded . | . . . . . . . . Melee . | . . . . . . . . Uniques/NPCs Destroyed . | . . . . . . . . Combat | -11 -10 -10 -9 -9 -9 -8 -8 -------- Run | Yrd Mat Min Mat Min Exi Min Mat Hostile Shots Fired 116 | . 65 . 11 5 . . 35 Missed 35 | . 20 . 3 3 . . 9 Hits 81 | . 45 . 8 2 . . 26 Projectile 81 | . 45 . 8 2 . . 26 Critical Strikes 1 | . 1 . . . . . . Damage Taken 966 | . 431 . 100 67 . 9 359 Core 156 | . 44 . 18 6 . 8 80 Absorbed by Shields . | . . . . . . . . Redirected to Shielding 6 | . 3 . 3 . . . . Core Remaining (%) 91 | 100 . 82 . . . 92 . Volleys Fired 67 | . 33 . 6 3 . . 25 Largest 2 | . 2 . 2 2 . . 2 Hottest 126 | . 60 . 86 60 . . 126 Shots Fired 133 | . 66 . 12 6 . . 49 Gun 47 | . . . 6 . . . 41 Cannon 86 | . 66 . 6 6 . . 8 Launcher . | . . . . . . . . Special . | . . . . . . . . Kinetic 79 | . 66 . 6 6 . . 1 Thermal 40 | . . . 6 . . . 34 Explosive . | . . . . . . . . Electromagnetic 14 | . . . . . . . 14 Robot Hit Streak 11 | . 7 . 11 1 . . 5 Robot Miss Streak 4 | . 4 . 1 3 . . 4 Penetration Max . | . . . . . . . . Secondary Targets 1 | . . . . . . . 1 Max Gunslinging Chain 1 | . . . . . . . 1 Shots Hit Robots 63 | . 29 . 9 2 . . 23 Core Hits 35 | . 15 . 3 1 . . 16 Critical Kills . | . . . . . . . . Critical Parts Destroyed . | . . . . . . . . Critical Strikes 5 | . 4 . 1 . . . . Burn 1 | . . . 1 . . . . Blast 4 | . 4 . . . . . . Melee Attacks . | . . . . . . . . Impact . | . . . . . . . . Slashing . | . . . . . . . . Piercing . | . . . . . . . . Sneak Attacks . | . . . . . . . . Combat Hostiles . | . . . . . . . . Follow-up Attacks . | . . . . . . . . Damage Inflicted 1292 | . 557 . 156 38 . . 541 Guns 554 | . . . 101 . . . 453 Cannons 738 | . 557 . 55 38 . . 88 Explosions . | . . . . . . . . Melee . | . . . . . . . . Ramming . | . . . . . . . . Kinetic 650 | . 557 . 55 38 . . . Thermal 498 | . . . 101 . . . 397 Explosive . | . . . . . . . . Electromagnetic 144 | . . . . . . . 144 Impact . | . . . . . . . . Slashing . | . . . . . . . . Piercing . | . . . . . . . . Highest Corruption 3 | . . . . . . . 3 Average Corruption 3 | . . . . . . . 3 Corruption Purged . | . . . . . . . . Corruption Blocked . | . . . . . . . . Effects 7 | . . . . . . . 7 Message Errors 2 | . . . . . . . 2 Matter Fused 2 | . . . . . . . 2 Heat Flow Errors 1 | . . . . . . . 1 Parts Rejected 1 | . . . . . . . 1 Alerts 1 | . . . . . . . 1 Overload Shots . | . . . . . . . . Overflow Damage 5 | . 5 . . . . . . Projectiles 5 | . 5 . . . . . . Explosions . | . . . . . . . . Melee . | . . . . . . . . Knockbacks 5 | . 4 . 1 . . . . Impact . | . . . . . . . . Kinetic 4 | . 3 . 1 . . . . Secondary 1 | . 1 . . . . . . Self-Inflicted Damage . | . . . . . . . . Shots . | . . . . . . . . Rammed . | . . . . . . . . Targets Rammed . | . . . . . . . . Kicked . | . . . . . . . . Crushed . | . . . . . . . . Highest Temperature 331 | . 60 . 105 . . . 331 Average Temperature 79 | . 24 . 48 . . . 101 Received Heat Transfer 207 | . 108 . 45 . . . 54 Siege Activations . | . . . . . . . . Martial Activations . | . . . . . . . . Shielding Activations . | . . . . . . . . Robots Disrupted . | . . . . . . . . Combat Hostiles . | . . . . . . . . Robots Corrupted . | . . . . . . . . Combat Hostiles . | . . . . . . . . Parts Fried 1 | . . . . . . . 1 Impact Corruptions . | . . . . . . . . Robots Melted . | . . . . . . . . Combat Hostiles . | . . . . . . . . Parts Melted 3 | . . . 1 . . . 2 Heat Transferred 1073 | . . . 296 . . . 777 Parts Sabotaged . | . . . . . . . . Parts Stolen . | . . . . . . . . Parts Stripped . | . . . . . . . . Power Chain Reactions . | . . . . . . . . Alert | -11 -10 -10 -9 -9 -9 -8 -8 ------- Run | Yrd Mat Min Mat Min Exi Min Mat Maximum Alert Level 1 | . 1 . . . . . . Low Security (%) 99 | 100 94 100 100 100 . 100 100 Level 1 . | . 5 . . . . . . Level 2 . | . . . . . . . . Level 3 . | . . . . . . . . Level 4 . | . . . . . . . . Level 5 . | . . . . . . . . High Security . | . . . . . . . . Max Security . | . . . . . . . . Peak Influence 202 | . 202 69 60 5 . . 81 Initial 69 | . . 69 . 1 . . . Average 20 | . 97 7 12 . . . 15 Influence Increases 625 | . 297 . 108 5 . . 215 Destroy 0b10 Robot/C 400 | . 220 . 60 . . . 120 Destroy 0b10 Robot/NC 50 | . 20 . . 5 . . 25 Destroy Leader 114 | . 42 . 20 . . . 52 Trap Triggered on 0b10 10 | . . . 10 . . . . Successful Hack 18 | . . . 18 . . . . Disable Machine 30 | . 15 . . . . . 15 Destroy Structure 3 | . . . . . . . 3 Influence Decreases 552 | . 120 177 104 9 . . 142 Entered New Map 111 | . . 108 . 3 . . . Time Decay 431 | . 120 69 104 6 . . 132 Lost Part 10 | . . . . . . . 10 Squads Dispatched 6 | . 2 . 2 . . . 2 Investigation 1 | . . . 1 . . . . Extermination . | . . . . . . . . Reinforcement 4 | . 2 . 1 . . . 1 Assault . | . . . . . . . . Garrison 1 | . . . . . . . 1 Intercept . | . . . . . . . . Searches Triggered . | . . . . . . . . Construction Impeded . | . . . . . . . . Haulers Reinforced . | . . . . . . . . Active Scanning Responses . | . . . . . . . . Cargo Convoy Interrupts . | . . . . . . . . Stealth | -11 -10 -10 -9 -9 -9 -8 -8 --------- Run | Yrd Mat Min Mat Min Exi Min Mat Distress Signals 6 | . 2 . . . . . 4 Communications Jammed . | . . . . . . . . Distress Signals . | . . . . . . . . Times Spotted 47 | . 16 . 6 4 . 3 18 Peak Tracking Total 8 | . 4 . 3 4 . 3 8 Tactical Retreats . | . . . . . . . . Traps | -11 -10 -10 -9 -9 -9 -8 -8 ------- Run | Yrd Mat Min Mat Min Exi Min Mat Traps Triggered 1 | . . . 1 . . . . Indirectly . | . . . . . . . . Trap Hack Attempts . | . . . . . . . . Triggered . | . . . . . . . . Disarmed . | . . . . . . . . Reprogrammed . | . . . . . . . . Reused 1 | . . . 1 . . . . Traps Extracted . | . . . . . . . . Installed 4 | . . . 4 . . . . Triggered 1 | . . . 1 . . . . Most Traps Carried 4 | . . 4 4 . . . . Machines | -11 -10 -10 -9 -9 -9 -8 -8 ---------- Run | Yrd Mat Min Mat Min Exi Min Mat Machines Disabled 2 | . 1 . . . . . 1 Max in Single Turn 1 | . 1 . . . . . 1 Machines Repaired . | . . . . . . . . Machines Dismantled . | . . . . . . . . Machines Sabotaged . | . . . . . . . . Overloaded Fab Kills . | . . . . . . . . Hacking | -11 -10 -10 -9 -9 -9 -8 -8 --------- Run | Yrd Mat Min Mat Min Exi Min Mat Machines Accessed 4 | . . . 2 1 . . 1 Terminals 2 | . . . 2 . . . . Fabricators . | . . . . . . . . Repair Stations . | . . . . . . . . Recycling Units . | . . . . . . . . Scanalyzers 1 | . . . . . . . 1 Garrison Access . | . . . . . . . . Total Hacks 11 | . . . 7 1 . . 3 Successful 7 | . . . 3 1 . . 3 Failed 4 | . . . 4 . . . . Catastrophic 1 | . . . 1 . . . . Database Lockouts . | . . . . . . . . Manual 1 | . . . 1 . . . . Terminals 7 | . . . 7 . . . . Fabricators . | . . . . . . . . Repair Stations . | . . . . . . . . Recycling Units . | . . . . . . . . Scanalyzers 3 | . . . . . . . 3 Garrison Access . | . . . . . . . . Terminal Hacks 4 | . . . 3 1 . . . Open Door 1 | . . . . 1 . . . Branch Access Points 1 | . . . 1 . . . . Locate Traps 1 | . . . 1 . . . . Surveillance Status 1 | . . . 1 . . . . Fabricator Hacks . | . . . . . . . . Repair Station Hacks . | . . . . . . . . Recycling Unit Hacks . | . . . . . . . . Scanalyzer 3 | . . . . . . . 3 Retrieve Study 3 | . . . . . . . 3 Garrison Access Hacks . | . . . . . . . . Unauthorized Hacks . | . . . . . . . . Terminals . | . . . . . . . . Fabricators . | . . . . . . . . Repair Stations . | . . . . . . . . Recycling Units . | . . . . . . . . Scanalyzers . | . . . . . . . . Garrison Access . | . . . . . . . . Data Cores Recovered . | . . . . . . . . Used . | . . . . . . . . Hacking Detections 2 | . . . 1 . . . 1 Full Trace Events 1 | . . . 1 . . . . Feedback Events . | . . . . . . . . Feedback Blocked . | . . . . . . . . Robot Schematics Acquired . | . . . . . . . . Robots Built . | . . . . . . . . Authchips . | . . . . . . . . Time . | . . . . . . . . Total Robot Build Rating . | . . . . . . . . Part Schematics Acquired . | . . . . . . . . Parts Built . | . . . . . . . . Authchips . | . . . . . . . . Time . | . . . . . . . . Total Part Build Rating . | . . . . . . . . Part Studies Acquired 3 | . . . . . . . 3 Parts Repaired . | . . . . . . . . Time . | . . . . . . . . Parts Recycled . | . . . . . . . . Recycled Matter . | . . . . . . . . Retrieved Matter . | . . . . . . . . Retrieved Components . | . . . . . . . . Parts Scanalyzed . | . . . . . . . . Part Schematics Acquired . | . . . . . . . . Parts Damaged . | . . . . . . . . Bothacking | -11 -10 -10 -9 -9 -9 -8 -8 ------------ Run | Yrd Mat Min Mat Min Exi Min Mat Used RIF Installer . | . . . . . . . . Robots Hacked . | . . . . . . . . Non-combat . | . . . . . . . . Combat . | . . . . . . . . Robot Hacks Applied . | . . . . . . . . Relay Couplers Released . | . . . . . . . . Fabnet Peak Effective % . | . . . . . . . . Robots Rewired . | . . . . . . . . Allies Hacked . | . . . . . . . . Hacks Repelled . | . . . . . . . . Allies | -11 -10 -10 -9 -9 -9 -8 -8 -------- Run | Yrd Mat Min Mat Min Exi Min Mat Total Allies . | . . . . . . . . Largest Group . | . . . . . . . . Highest-Rated Group . | . . . . . . . . Highest-Rated Ally . | . . . . . . . . Total Orders 8 | . . . . . . . 8 EXPLORE 8 | . . . . . . . 8 Ally Attacks 13 | . . . . 1 . 2 10 Total Damage . | . . . . . . . . Kills . | . . . . . . . . Allies Corrupted . | . . . . . . . . Allies Melted . | . . . . . . . . Intel | -11 -10 -10 -9 -9 -9 -8 -8 ------- Run | Yrd Mat Min Mat Min Exi Min Mat Active Infowar (turns) 399 | . . . . . . . 399 Optics 399 | . . . . . . . 399 Robot Analysis Total . | . . . . . . . . Derelict Logs Recovered 2 | . . 1 . 1 . . . Drone Launches 17 | . . . . 3 . . 14 Drone Recoveries 1 | . . . . . . . 1 Exploration | -11 -10 -10 -9 -9 -9 -8 -8 ------------- Run | Yrd Mat Min Mat Min Exi Min Mat Turns Passed 3146 | 14 307 765 391 120 468 100 981 Spaces Moved 1796 | 12 182 293 469 92 293 63 392 Core 2 | . . . 2 . . . . Treads 791 | . . . . 43 293 63 392 Legs 14 | 12 2 . . . . . . Wheels 665 | . 180 293 192 . . . . Hover . | . . . . . . . . Flight 324 | . . . 275 49 . . . Fastest Speed 37 | 120 95 95 37 37 160 160 160 Average Speed 116 | 120 98 95 65 114 160 160 161 Slowest Speed 350 | 120 120 95 350 250 160 160 163 Overloaded Moves . | . . . . . . . . Propulsion Burnouts . | . . . . . . . . Robots Hopped . | . . . . . . . . Potential Cave-ins 2 | . . . . . . 2 . Cave-ins Triggered . | . . . . . . . . Exploration Rate (%) 35 | 2 44 55 26 20 60 25 51 Regions Visited 7 Branch Regions 4 Pre-discovered Areas 1 | . . . . 1 . . . Known Exits Taken 4 | . . . 1 1 1 1 . Unknown Exits Taken 3 | 1 1 1 . . . . . Scrap Searched 1 | . . . . 1 . . . Spaces Dug . | . . . . . . . . Terrain Destroyed . | . . . . . . . . Melee . | . . . . . . . . Projectile . | . . . . . . . . AOE . | . . . . . . . . Terrain Rammed . | . . . . . . . . Walls Destroyed . | . . . . . . . . Machines Disabled . | . . . . . . . . Actions | -11 -10 -10 -9 -9 -9 -8 -8 --------- Run | Yrd Mat Min Mat Min Exi Min Mat Total 2739 | 11 246 779 547 101 292 62 701 Wait 734 | . . 483 35 . . . 216 Move 1789 | 11 181 292 468 91 292 62 392 Hop . | . . . . . . . . Pick Up 33 | . 8 4 3 1 . . 17 Fast Attach 8 | . . . 5 . . . 3 Attach 33 | . 5 . 5 5 . . 18 Detach 26 | . 4 . 6 1 . . 15 Swap 11 | . 6 . 2 . . . 3 Drop 34 | . 9 . 13 . . . 12 Fire 67 | . 33 . 6 3 . . 25 Melee . | . . . . . . . . Ram . | . . . . . . . . Kick . | . . . . . . . . Crush . | . . . . . . . . Escape Stasis . | . . . . . . . . Rewire . | . . . . . . . . Trap 4 | . . . 4 . . . . Miscellaneous . | . . . . . . . . Route ------- -11/Scrapyard -10/Materials (discovered 3 exits: *Mat x2 / [*Min]) -10/Mines -9/Materials -9/Mines (discovered 2 exits: *Mat / *Exi) -9/Exiles -8/Mines -8/Materials History --------- Turn | Location | Event 1 | -11/Scrapyard | Discovered new exit (range 2) 15 | -11/Scrapyard | Entered Materials 163 | -10/Materials | Discovered new exit (range 4) 185 | -10/Materials | Discovered new exit (range 9) 269 | -10/Materials | Discovered new exit (range 13) 315 | -10/Materials | Build established: Mutant 322 | -10/Materials | Entered Mines 376 | -10/Mines | Found a hidden stash of uninstalled traps 440 | -10/Mines | Discovered new exit (range 5) 1087 | -10/Mines | Entered Materials 1087 | -9/Materials | Evolved 2 slots: Propulsion x1, Utility x1 1435 | -9/Materials | Identified exit to Mines 1478 | -9/Materials | Entered Mines 1487 | -9/Mines | Found the Drone Emporium 1488 | -9/Mines | Found Prototype Device 1489 | -9/Mines | Identified Bomb Drone Bay 1495 | -9/Mines | Discovered new exit (range 5) 1550 | -9/Mines | Learned location of Zion (-6) 1591 | -9/Mines | Deemed a non-threat by the Exiles lab entrance 1591 | -9/Mines | Discovered new exit (range 5) 1596 | -9/Mines | Identified exit to Exiles 1598 | -9/Mines | Entered Exiles 1598 | -9/Exiles | Accompanied by 2 allies 1621 | -9/Exiles | Discovered new exit (range 18) 1651 | -9/Exiles | Met 8R-AWN 1677 | -9/Exiles | Met EX-HEX 1730 | -9/Exiles | Met EX-BIN 1904 | -9/Exiles | Met EX-DEC 2064 | -9/Exiles | Identified exit to Mines 2066 | -9/Exiles | Entered Mines 2066 | -8/Mines | Accompanied by 2 allies 2143 | -8/Mines | Discovered new exit (range 14) 2164 | -8/Mines | Identified exit to Materials 2166 | -8/Mines | Entered Materials 2166 | -8/Materials | Evolved 2 slots: Propulsion x1, Utility x1 3141 | -8/Materials | Garrison activated, responded to threat 3147 | -8/Materials | Self-destructed Last Messages --------------- 03080_ Slug penetrates Wall. 03083_ System corrupted: Matter fused (-5). 03084_ Gauss Rifle melted. 03084_ H-55 Commando destroyed. 03090_ Acquired Prototype Energy Gun. 03091_ Acquired 46 matter. 03110_ Dropped Adv. Beam Rifle. 03110_ Acquired Hvy. Assault Cannon. 03114_ Dropped Hvy. Assault Cannon. 03116_ U-05 Engineer builds a Door. 03116_ Acquired Adv. Beam Rifle. 03124_ W-25 Informer sends out distress signal. 03129_ U-05 Engineer works on Matter Pump. 03130_ System corrupted: Heat flow error (+184). 03135_ Destroyed Imp. Hover Unit. 03135_ ALERT: Hostiles spotted, dispatching reinforcements to Terminal M006. 03138_ Matter Pump disabled. 03141_ U-05 Engineer calls for garrison support. 03141_ ALERT: Activating Garrison Access M001. Map ----- +----------------------------------------------------+ | ???????? ??????????????????????????????????????? | | ??????? #??????????????????????????????????????? | | ??####? #?????????##???????????????????????????? | | ??#T"#? #?????? !#???????????????????????????? | | ### "## ##?? #???????????????????????????? | | # """ #???????????????????????????? | | + """ #???????????????????????????? | | # """ #???????????????????????????? | | #####+####??!] """ ????????????????????????????? | | ??# #????? """ ????????????????????????????? | | " ## ]] #??????? ????????????????????????????? | | " ## ]] #??????#######?????????????????????????? | | " ## ] ######## ##########????????????????? | | ## # ! # #????????????????? | | ]## #= *%! + #????????????????? | | #### /%[ = # ] #????????????????? | | ???#######/##### #! #????????????????? | | ???????????????## ## ! #????????????????? | | ????????????????# ##! #????????????????? | | ????????????????# ## #????????????????? | | ????????????????# ## #????????????????? | | ????????????????# ## #????????????????? | | ????????????????# ######+############????????? | | ????????????????# g # #?????? | | ????????????????# u! g #?????? | | ????????????????# @ g gg ""??? | | ????????????????# r ! %%" u<<< # ??? | | ????????????????####+### """ u